fUST/lending_fUST_20250723
["ID","MTS","AMOUNT","RATE_DAILY","PERIOD"]
[374160059,1753233038533,-460.0,0.00016787,2]
[374160060,1753233038543,-460.0,0.00016787,2]
[374160061,1753233038553,-460.0,0.00016787,2]
[374160062,1753233038562,-460.0,0.00016787,2]
[374160063,1753233038572,-460.0,0.00016787,2]
[374160064,1753233038581,-460.0,0.00016787,2]
[374160065,1753233038590,-460.0,0.00016787,2]
[374160066,1753233038599,-460.0,0.00016787,2]
[374160067,1753233038609,-460.0,0.00016787,2]
[374160068,1753233038619,-500.0,0.00016788,2]
[374160069,1753233038628,-460.0,0.00016788,2]
[374160070,1753233038640,-2089.16,0.00016788,2]
[374160071,1753233038650,-755.24,0.00016788,2]
[374160072,1753233038659,-1008.07,0.00016788,2]
[374160073,1753233038668,-774.97,0.00016788,2]
[374160074,1753233038679,-1434.22,0.00016788,2]
[374160075,1753233038688,-460.0,0.00016788,2]
[374160076,1753233038698,-1865.85,0.00016788,2]
[374160077,1753233038707,-460.0,0.0001706,2]
[374160078,1753233038718,-460.0,0.0001706,2]
[374160079,1753233038729,-505.19534823,0.0001706,2]
[374160080,1753233038739,-462.94309087,0.0001706,2]
[374160081,1753233038748,-460.0,0.0001706,2]
[374160082,1753233038759,-460.0,0.0001706,2]
[374160083,1753233038768,-460.0,0.0001706,2]
[374160084,1753233038780,-857.45,0.0001706,2]
[374160085,1753233038789,-1007.79,0.0001706,2]
[374160086,1753233038798,-419.53,0.0001706,2]
[374160087,1753233038807,-460.0,0.0001706,2]
[374160088,1753233038816,-460.0,0.0001706,2]
[374160089,1753233038826,-460.0,0.0001706,2]
[374160090,1753233038836,-1306.39,0.0001706,2]
[374160091,1753233038846,-432.43,0.0001706,2]
[374160092,1753233038856,-1097.55,0.0001706,2]
[374160093,1753233038866,-460.0,0.0001706,2]
[374160094,1753233038876,-591.76686848,0.0001706,2]
[374160095,1753233038886,-460.0,0.0001706,2]
[374160096,1753233038897,-521.34,0.0001706,2]
[374160097,1753233038906,-460.0,0.0001706,2]
[374160098,1753233038915,-460.0,0.0001706,2]
[374160099,1753233038925,-460.0,0.0001706,2]
[374160101,1753233038934,-460.0,0.00017061,2]
[374160102,1753233038943,-600.82809579,0.00017061,2]
[374160104,1753233038952,-460.0,0.00017061,2]
[374160106,1753233038962,-460.0,0.00017061,2]
[374160108,1753233038971,-460.0,0.00017061,2]
[374160110,1753233038980,-460.0,0.00017061,2]
[374160112,1753233038989,-460.0,0.00017061,2]
[374160114,1753233038999,-460.0,0.00017061,2]
[374160116,1753233039008,-460.0,0.00017061,2]
[374160118,1753233039018,-460.0,0.00017061,2]
[374160120,1753233039029,-460.0,0.00017061,2]
[374160122,1753233039038,-500.0,0.00017061,2]
[374160124,1753233039049,-460.0,0.00017061,2]
[374160126,1753233039059,-460.0,0.00017061,2]
[374160128,1753233039068,-460.0,0.00017061,2]
[374160130,1753233039077,-460.0,0.00017061,2]
[374160132,1753233039086,-460.0,0.00017061,2]
[374160134,1753233039095,-460.0,0.00017061,2]
[374160136,1753233039104,-460.0,0.00017061,2]
[374160138,1753233039114,-460.0,0.00017061,2]
[374160140,1753233039123,-500.0,0.00017062,2]
[374160142,1753233039133,-460.0,0.00017062,2]
[374160144,1753233039143,-2089.16,0.00017062,2]
[374160146,1753233039153,-755.24,0.00017062,2]
[374160148,1753233039162,-1008.07,0.00017062,2]
[374160150,1753233039171,-774.97,0.00017062,2]
[374160153,1753233039189,-1434.22,0.00017062,2]
[374160155,1753233039202,-460.0,0.00017062,2]
[374160156,1753233039212,-1865.85,0.00017062,2]
[374160157,1753233039222,-27838.16776254,0.00017239,2]
[374160159,1753233039231,-460.0,0.00017334,2]
[374160161,1753233039241,-857.45,0.00017334,2]
[374160162,1753233039251,-1007.79,0.00017334,2]
[374160164,1753233039260,-264.55,0.00017334,2]
[374160166,1753233039271,-460.0,0.00017334,2]
[374160168,1753233039280,-460.0,0.00017334,2]
[374160170,1753233039289,-1306.39,0.00017334,2]
[374160172,1753233039299,-1097.55,0.00017334,2]
[374160174,1753233039308,-460.0,0.00017334,2]
[374160176,1753233039318,-237.88,0.00017334,2]
[374160178,1753233039327,-460.0,0.00017334,2]
[374160180,1753233039337,-460.0,0.00017334,2]
[374160182,1753233039347,-460.0,0.00017335,2]
[374160185,1753233039357,-460.0,0.00017335,2]
[374160187,1753233039366,-460.0,0.00017335,2]
[374160189,1753233039376,-460.0,0.00017335,2]
[374160191,1753233039385,-460.0,0.00017335,2]
[374160193,1753233039395,-403.13,0.00017335,2]
[374160195,1753233039404,-460.0,0.00017335,2]
[374160197,1753233039413,-577.67,0.00017335,2]
[374160199,1753233039423,-460.0,0.00017335,2]
[374160201,1753233039432,-338.98,0.00017335,2]
[374160202,1753233039442,-460.0,0.00017335,2]
[374160203,1753233039452,-500.0,0.00017336,2]
[374160204,1753233039462,-2089.16,0.00017336,2]
[374160205,1753233039471,-755.24,0.00017336,2]
[374160206,1753233039482,-1008.07,0.00017336,2]
[374160207,1753233039492,-774.97,0.00017336,2]
[374160208,1753233039502,-1434.22,0.00017336,2]
[374160209,1753233039512,-460.0,0.00017336,2]
[374160211,1753233039523,-1865.85,0.00017336,2]
[374160213,1753233039534,-500.0,0.00017338,2]
[374160215,1753233039543,-500.0,0.00017338,2]
[374160217,1753233039553,-500.0,0.00017338,2]
[374160219,1753233039563,-199.8088663,0.00017339,2]
[374160221,1753233039572,-460.0,0.00017339,2]
[374160224,1753233039582,-460.0,0.00017339,2]
[374160226,1753233039591,-500.0,0.00017339,2]
[374160228,1753233039601,-460.0,0.00017339,2]
[374160230,1753233039610,-368.87176163,0.00017339,2]
[374160232,1753233039620,-460.0,0.00017339,2]
[374160234,1753233039631,-461.20108132,0.00017339,2]
[374160237,1753233039643,-460.0,0.00017339,2]
[374160240,1753233039652,-460.0,0.00017339,2]
[374160241,1753233039662,-460.0,0.00017339,2]
[374160243,1753233039672,-460.0,0.00017339,2]
[374160244,1753233039681,-460.0,0.00017339,2]
[374160245,1753233039691,-460.0,0.00017339,2]
[374160246,1753233039701,-460.0,0.00017339,2]
[374160247,1753233039710,-460.0,0.00017339,2]
[374160248,1753233039720,-282.19192418,0.00017339,2]
[374160249,1753233039731,-461.78145526,0.00017339,2]
[374160250,1753233039740,-460.0,0.00017339,2]
[374160251,1753233039750,-460.0,0.00017339,2]
[374160252,1753233039759,-460.0,0.00017339,2]
[374160253,1753233039769,-460.0,0.00017339,2]
[374160254,1753233039779,-460.0,0.00017339,2]
[374160255,1753233039788,-301.41598011,0.00017339,2]
[374160256,1753233039798,-460.0,0.00017339,2]
[374160257,1753233039808,-460.0,0.00017339,2]
[374160258,1753233039818,-460.0,0.00017339,2]
[374160259,1753233039827,-460.0,0.00017339,2]
[374160260,1753233039838,-460.0,0.00017339,2]
[374160261,1753233039847,-460.0,0.00017339,2]
[374160262,1753233039857,-460.0,0.00017339,2]
[374160263,1753233039867,-460.0,0.00017339,2]
[374160264,1753233039876,-460.0,0.00017339,2]
[374160265,1753233039886,-460.0,0.00017339,2]
[374160266,1753233039895,-460.0,0.00017339,2]
[374160267,1753233039905,-460.0,0.00017339,2]
[374160268,1753233039915,-460.0,0.00017339,2]
[374160269,1753233039926,-460.0,0.00017339,2]
[374160270,1753233039935,-296.25392541,0.00017339,2]
[374160271,1753233039945,-460.0,0.00017339,2]
[374160272,1753233039955,-460.0,0.00017339,2]
[374160273,1753233039966,-460.0,0.00017339,2]
[374160274,1753233039975,-460.0,0.00017339,2]
[374160275,1753233039985,-460.0,0.00017339,2]
[374160276,1753233039996,-460.0,0.00017339,2]
[374160277,1753233040005,-460.0,0.00017339,2]
[374160278,1753233040014,-460.0,0.00017339,2]
[374160279,1753233040026,-460.0,0.00017339,2]
[374160280,1753233040036,-460.0,0.00017339,2]
[374160281,1753233040046,-460.0,0.00017339,2]
[374160282,1753233040056,-460.0,0.00017339,2]
[374160283,1753233040066,-460.0,0.00017339,2]
[374160284,1753233040076,-460.0,0.00017339,2]
[374160285,1753233040086,-460.0,0.00017339,2]
[374160286,1753233040096,-460.0,0.00017339,2]
[374160287,1753233040106,-460.0,0.00017339,2]
[374160288,1753233040116,-552.51,0.00017339,2]
[374160289,1753233040127,-460.0,0.00017339,2]
[374160290,1753233040250,-460.0,0.00017339,2]
[374160291,1753233040259,-460.0,0.00017339,2]
[374160292,1753233040269,-460.0,0.00017339,2]
[374160293,1753233040281,-460.0,0.00017339,2]
[374160294,1753233040290,-460.0,0.00017339,2]
[374160296,1753233040299,-460.0,0.00017339,2]
[374160297,1753233040308,-460.0,0.00017339,2]
[374160298,1753233040319,-460.0,0.00017339,2]
[374160299,1753233040329,-500.0,0.00017339,2]
[374160300,1753233040339,-500.0,0.00017339,2]
[374160301,1753233040349,-500.0,0.00017339,2]
[374160302,1753233040359,-460.0,0.00017339,2]
[374160303,1753233040368,-460.0,0.00017339,2]
[374160304,1753233040378,-460.0,0.00017339,2]
[374160305,1753233040387,-460.0,0.00017339,2]
[374160306,1753233040398,-460.0,0.00017339,2]
[374160307,1753233040408,-460.0,0.00017339,2]
[374160308,1753233040417,-460.0,0.00017339,2]
[374160309,1753233040426,-460.0,0.00017339,2]
[374160310,1753233040436,-460.0,0.00017339,2]
[374160311,1753233040445,-460.0,0.00017339,2]
[374160312,1753233040455,-460.0,0.00017339,2]
[374160313,1753233040465,-460.0,0.00017339,2]
[374160314,1753233040475,-465.59914538,0.00017339,2]
[374160315,1753233040485,-460.0,0.00017339,2]
[374160316,1753233040495,-208.75664337,0.00017339,2]
[374160317,1753233040504,-460.0,0.00017339,2]
[374160318,1753233040514,-460.0,0.00017339,2]
[374160319,1753233040524,-460.0,0.0001734,2]
[374160320,1753233040533,-460.0,0.0001734,2]
[374160321,1753233040543,-460.0,0.0001734,2]
[374160322,1753233040552,-460.0,0.0001734,2]
[374160323,1753233040561,-460.0,0.0001734,2]
[374160324,1753233040570,-460.0,0.0001734,2]
[374160325,1753233040580,-460.0,0.0001734,2]
[374160326,1753233040589,-460.0,0.0001734,2]
[374160327,1753233040598,-460.0,0.0001734,2]
[374160328,1753233040607,-5528.05944362,0.00017513,2]
[374160329,1753233040617,-857.45,0.00017608,2]
[374160330,1753233040627,-1007.79,0.00017608,2]
[374160331,1753233040641,-415.13924751,0.00017608,2]
[374160332,1753233040651,-1306.39,0.00017608,2]
[374160333,1753233040661,-1097.55,0.00017608,2]
[374160334,1753233040670,-460.0,0.00017608,2]
[374160335,1753233040682,-460.0,0.00017608,2]
[374160336,1753233040691,-460.0,0.00017608,2]
[374160337,1753233040701,-460.0,0.00017609,2]
[374160338,1753233040711,-460.0,0.00017609,2]
[374160339,1753233040723,-460.0,0.00017609,2]
[374160340,1753233040733,-460.0,0.00017609,2]
[374160341,1753233040743,-500.0,0.00017609,2]
[374160342,1753233040752,-460.0,0.00017609,2]
[374160343,1753233040761,-460.0,0.00017609,2]
[374160344,1753233040770,-228.73,0.00017609,2]
[374160345,1753233040782,-500.0,0.0001761,2]
[374160346,1753233040791,-2089.16,0.0001761,2]
[374160347,1753233040801,-755.24,0.0001761,2]
[374160348,1753233040810,-1008.07,0.0001761,2]
[374160349,1753233040819,-774.97,0.0001761,2]
[374160350,1753233040828,-1434.22,0.0001761,2]
[374160351,1753233040837,-460.0,0.0001761,2]
[374160352,1753233040847,-1865.85,0.0001761,2]
[374160353,1753233040856,-304.064,0.00017611,2]
[374160354,1753233040865,-607.09261709,0.00017612,2]
[374160355,1753233040875,-460.0,0.00017612,2]
[374160356,1753233040885,-460.0,0.00017612,2]
[374160357,1753233040895,-460.0,0.00017612,2]
[374160358,1753233040904,-460.0,0.00017612,2]
[374160359,1753233040914,-460.0,0.00017612,2]
[374160360,1753233040923,-460.0,0.00017612,2]
[374160361,1753233040933,-460.0,0.00017612,2]
[374160362,1753233040942,-460.0,0.00017612,2]
[374160363,1753233040952,-460.0,0.00017612,2]
[374160364,1753233040962,-340.03962769,0.00017612,2]
[374160365,1753233040971,-1000.0,0.00017612,2]
[374160366,1753233040980,-460.0,0.00017612,2]
[374160367,1753233040989,-460.0,0.00017612,2]
[374160368,1753233040998,-460.0,0.00017612,2]
[374160369,1753233041007,-460.0,0.00017612,2]
[374160370,1753233041016,-460.0,0.00017612,2]
[374160371,1753233041028,-460.0,0.00017612,2]
[374160372,1753233041038,-460.0,0.00017612,2]
[374160373,1753233041047,-460.0,0.00017612,2]
[374160374,1753233041056,-460.0,0.00017612,2]
[374160375,1753233041065,-460.0,0.00017612,2]
[374160376,1753233041075,-460.0,0.00017612,2]
[374160377,1753233041083,-460.5026387,0.00017612,2]
[374160378,1753233041093,-475.70883072,0.00017612,2]
[374160379,1753233041102,-460.0,0.00017612,2]
[374160380,1753233041112,-460.0,0.00017612,2]
[374160381,1753233041121,-460.0,0.00017612,2]
[374160382,1753233041131,-460.0,0.00017612,2]
[374160383,1753233041140,-443.20180375,0.00017612,2]
[374160384,1753233041153,-460.0,0.00017612,2]
[374160385,1753233041163,-460.0,0.00017612,2]
[374160386,1753233041172,-460.0,0.00017612,2]
[374160387,1753233041181,-460.0,0.00017612,2]
[374160388,1753233041191,-460.0,0.00017612,2]
[374160389,1753233041200,-460.0,0.00017612,2]
[374160390,1753233041210,-317.30307784,0.00017612,2]
[374160391,1753233041219,-460.0,0.00017612,2]
[374160392,1753233041228,-460.0,0.00017612,2]
[374160393,1753233041238,-460.0,0.00017612,2]
[374160394,1753233041247,-460.0,0.00017612,2]
[374160395,1753233041256,-460.0,0.00017612,2]
[374160396,1753233041266,-2977.13,0.00017612,2]
[374160397,1753233041276,-460.0,0.00017612,2]
[374160398,1753233041285,-460.0,0.00017612,2]
[374160399,1753233041294,-460.0,0.00017612,2]
[374160400,1753233041303,-460.0,0.00017612,2]
[374160401,1753233041313,-460.0,0.00017612,2]
[374160402,1753233041322,-460.0,0.00017612,2]
[374160403,1753233041332,-460.0,0.00017612,2]
[374160404,1753233041341,-460.0,0.00017612,2]
[374160405,1753233041350,-460.0,0.00017612,2]
[374160406,1753233041360,-460.0,0.00017612,2]
[374160407,1753233041369,-460.0,0.00017612,2]
[374160408,1753233041379,-460.0,0.00017612,2]
[374160409,1753233041388,-465.7777132,0.00017612,2]
[374160410,1753233041398,-592.24375853,0.00017612,2]
[374160411,1753233041409,-460.0,0.00017612,2]
[374160412,1753233041418,-460.0,0.00017612,2]
[374160413,1753233041428,-460.0,0.00017612,2]
[374160414,1753233041438,-460.0,0.00017612,2]
[374160415,1753233041448,-460.0,0.00017612,2]
[374160416,1753233041457,-460.0,0.00017612,2]
[374160417,1753233041467,-460.0,0.00017612,2]
[374160418,1753233041478,-460.0,0.00017612,2]
[374160419,1753233041487,-460.0,0.00017612,2]
[374160420,1753233041496,-460.0,0.00017612,2]
[374160421,1753233041505,-1070.76,0.00017612,2]
[374160422,1753233041515,-460.0,0.00017612,2]
[374160423,1753233041524,-460.0,0.00017612,2]
[374160424,1753233041533,-460.0,0.00017612,2]
[374160425,1753233041543,-460.0,0.00017612,2]
[374160426,1753233041552,-460.0,0.00017612,2]
[374160427,1753233041561,-500.0,0.00017612,2]
[374160428,1753233041570,-460.0,0.00017612,2]
[374160429,1753233041580,-460.0,0.00017612,2]
[374160430,1753233041589,-460.0,0.00017612,2]
[374160431,1753233041598,-460.0,0.00017612,2]
[374160432,1753233041608,-460.0,0.00017612,2]
[374160433,1753233041617,-460.0,0.00017612,2]
[374160434,1753233041627,-460.0,0.00017612,2]
[374160435,1753233041640,-587.00634298,0.00017612,2]
[374160436,1753233041649,-460.0,0.00017612,2]
[374160437,1753233041658,-460.0,0.00017612,2]
[374160438,1753233041668,-460.0,0.00017612,2]
[374160439,1753233041677,-328.68464196,0.00017612,2]
[374160440,1753233041687,-460.0,0.00017612,2]
[374160441,1753233041696,-460.0,0.00017612,2]
[374160442,1753233041705,-460.0,0.00017612,2]
[374160443,1753233041714,-460.0,0.00017612,2]
[374160444,1753233041724,-460.0,0.00017612,2]
[374160445,1753233041734,-460.0,0.00017612,2]
[374160446,1753233041745,-500.0,0.00017612,2]
[374160447,1753233041755,-460.0,0.00017612,2]
[374160448,1753233041764,-462.89444049,0.00017612,2]
[374160449,1753233041774,-460.0,0.00017612,2]
[374160450,1753233041784,-461.0914089,0.00017612,2]
[374160451,1753233041793,-460.0,0.00017612,2]
[374160452,1753233041803,-460.0,0.00017612,2]
[374160453,1753233041812,-460.0,0.00017612,2]
[374160454,1753233041821,-460.0,0.00017612,2]
[374160455,1753233041830,-460.0,0.00017612,2]
[374160456,1753233041839,-460.0,0.00017612,2]
[374160457,1753233041849,-460.0,0.00017612,2]
[374160458,1753233041858,-460.0,0.00017612,2]
[374160459,1753233041868,-460.0,0.00017612,2]
[374160460,1753233041878,-460.0,0.00017612,2]
[374160461,1753233041887,-460.0,0.00017612,2]
[374160462,1753233041897,-460.0,0.00017612,2]
[374160464,1753233041906,-460.0,0.00017612,2]
[374160465,1753233041916,-460.0,0.00017612,2]
[374160466,1753233041925,-460.0,0.00017612,2]
[374160467,1753233041934,-460.0,0.00017612,2]
[374160468,1753233041944,-460.0,0.00017612,2]
[374160469,1753233041954,-460.0,0.00017612,2]
[374160470,1753233041963,-460.0,0.00017612,2]
[374160471,1753233041973,-460.0,0.00017612,2]
[374160472,1753233041982,-460.0,0.00017612,2]
[374160473,1753233041991,-460.0,0.00017612,2]
[374160474,1753233042001,-460.0,0.00017612,2]
[374160476,1753233042010,-460.0,0.00017612,2]
[374160478,1753233042019,-460.0,0.00017612,2]
[374160480,1753233042030,-460.0,0.00017612,2]
[374160482,1753233042039,-460.0,0.00017612,2]
[374160484,1753233042049,-460.0,0.00017612,2]
[374160486,1753233042060,-460.0,0.00017612,2]
[374160488,1753233042071,-460.0,0.00017612,2]
[374160490,1753233042082,-460.0,0.00017612,2]
[374160492,1753233042091,-500.0,0.00017612,2]
[374160494,1753233042103,-460.0,0.00017612,2]
[374160496,1753233042112,-460.0,0.00017612,2]
[374160498,1753233042122,-460.0,0.00017612,2]
[374160500,1753233042131,-460.0,0.00017612,2]
[374160502,1753233042140,-460.0,0.00017612,2]
[374160504,1753233042150,-314.89942466,0.00017612,2]
[374160506,1753233042159,-460.0,0.00017612,2]
[374160508,1753233042168,-460.0,0.00017612,2]
[374160510,1753233042178,-460.0,0.00017612,2]
[374160512,1753233042187,-460.0,0.00017612,2]
[374160514,1753233042196,-320.0,0.00017612,2]
[374160516,1753233042206,-639.35,0.00017612,2]
[374160518,1753233042215,-460.0,0.00017612,2]
[374160520,1753233042224,-460.0,0.00017612,2]
[374160521,1753233042234,-880.33,0.00017612,2]
[374160523,1753233042243,-460.0,0.00017612,2]
[374160525,1753233042252,-460.0,0.00017612,2]
[374160527,1753233042261,-460.0,0.00017612,2]
[374160529,1753233042271,-460.0,0.00017612,2]
[374160531,1753233042283,-460.0,0.00017612,2]
[374160533,1753233042292,-460.0,0.00017612,2]
[374160535,1753233042302,-460.0,0.00017612,2]
[374160537,1753233042312,-460.0,0.00017612,2]
[374160539,1753233042321,-460.53256641,0.00017612,2]
[374160541,1753233042330,-460.0,0.00017612,2]
[374160544,1753233042340,-460.0,0.00017612,2]
[374160547,1753233042350,-467.81754567,0.00017612,2]
[374160550,1753233042359,-354.28114758,0.00017612,2]
[374160552,1753233042369,-460.0,0.00017612,2]
[374160555,1753233042378,-460.0,0.00017612,2]
[374160557,1753233042387,-460.0,0.00017612,2]
[374160560,1753233042396,-460.0,0.00017612,2]
[374160562,1753233042405,-460.0,0.00017612,2]
[374160564,1753233042414,-460.0,0.00017612,2]
[374160576,1753233042515,-460.0,0.00017612,2]
[374160578,1753233042524,-460.0,0.00017612,2]
[374160580,1753233042533,-460.0,0.00017612,2]
[374160582,1753233042543,-460.0,0.00017612,2]
[374160584,1753233042552,-401.08024181,0.00017612,2]
[374160586,1753233042561,-460.0,0.00017612,2]
[374160588,1753233042570,-460.0,0.00017612,2]
[374160590,1753233042579,-460.0,0.00017612,2]
[374160592,1753233042588,-460.0,0.00017612,2]
[374160594,1753233042597,-460.0,0.00017612,2]
[374160596,1753233042606,-549.23163282,0.00017612,2]
[374160598,1753233042615,-536.85,0.00017612,2]
[374160599,1753233042624,-460.0,0.00017612,2]
[374160601,1753233042637,-460.0,0.00017612,2]
[374160603,1753233042646,-460.0,0.00017612,2]
[374160605,1753233042655,-675.06,0.00017612,2]
[374160607,1753233042664,-460.0,0.00017612,2]
[374160609,1753233042673,-460.0,0.00017612,2]
[374160611,1753233042682,-460.0,0.00017612,2]
[374160613,1753233042692,-460.0,0.00017612,2]
[374160615,1753233042701,-544.88130584,0.00017612,2]
[374160617,1753233042711,-460.0,0.00017612,2]
[374160619,1753233042720,-460.0,0.00017612,2]
[374160621,1753233042730,-460.0,0.00017612,2]
[374160623,1753233042739,-461.71,0.00017612,2]
[374160625,1753233042748,-477.97,0.00017612,2]
[374160626,1753233042757,-460.0,0.00017612,2]
[374160628,1753233042766,-460.0,0.00017612,2]
[374160630,1753233042775,-460.0,0.00017612,2]
[374160632,1753233042786,-460.0,0.00017612,2]
[374160634,1753233042796,-460.0,0.00017612,2]
[374160636,1753233042805,-460.0,0.00017612,2]
[374160638,1753233042814,-460.0,0.00017612,2]
[374160640,1753233042823,-460.0,0.00017612,2]
[374160642,1753233042833,-460.0,0.00017612,2]
[374160644,1753233042842,-460.0,0.00017612,2]
[374160646,1753233042851,-460.0,0.00017612,2]
[374160648,1753233042861,-461.68499274,0.00017612,2]
[374160650,1753233042870,-460.0,0.00017612,2]
[374160652,1753233042879,-500.0,0.00017612,2]
[374160655,1753233042888,-460.0,0.00017612,2]
[374160657,1753233042897,-460.0,0.00017612,2]
[374160659,1753233042906,-460.0,0.00017612,2]
[374160661,1753233042916,-253.2426375,0.00017612,2]
[374160663,1753233042926,-460.0,0.00017612,2]
[374160665,1753233042936,-460.0,0.00017612,2]
[374160667,1753233042945,-460.0,0.00017612,2]
[374160669,1753233042954,-540.47500646,0.00017612,2]
[374160670,1753233042963,-206.24,0.00017612,2]
[374160672,1753233042972,-460.0,0.00017613,2]
[374160674,1753233042981,-500.0,0.00017613,2]
[374160676,1753233042990,-287.95927866,0.00017613,2]
[374160678,1753233043000,-460.0,0.00017613,2]
[374160680,1753233043009,-392.68449731,0.00017613,2]
[374160682,1753233043018,-460.0,0.00017613,2]
[374160684,1753233043028,-460.0,0.00017613,2]
[374160686,1753233043038,-460.0,0.00017613,2]
[374160688,1753233043047,-460.0,0.00017613,2]
[374160690,1753233043056,-460.0,0.00017613,2]
[374160692,1753233043066,-460.0,0.00017613,2]
[374160694,1753233043075,-460.0,0.00017613,2]
[374160696,1753233043085,-551.86511765,0.00017613,2]
[374160698,1753233043095,-460.0,0.00017613,2]
[374160700,1753233043104,-463.32390032,0.00017613,2]
[374160702,1753233043114,-460.0,0.00017613,2]
[374160704,1753233043123,-586.59627877,0.00017613,2]
[374160706,1753233043132,-460.0,0.00017613,2]
[374160708,1753233043141,-460.0,0.00017614,2]
[374160709,1753233043150,-460.0,0.00017614,2]
[374160711,1753233043159,-460.0,0.00017614,2]
[374160713,1753233043169,-460.0,0.00017614,2]
[374160715,1753233043178,-460.0,0.00017614,2]
[374160717,1753233043187,-460.0,0.00017614,2]
[374160719,1753233043196,-460.0,0.00017614,2]
[374160721,1753233043205,-500.0,0.00017673,2]
[374160723,1753233043215,-500.54494054,0.00017673,2]
[374160725,1753233043224,-2071.61540846,0.00017782,2]
[374160727,1753233043233,-500.0,0.00017873,2]
[374160729,1753233043242,-362.64259414,0.00017873,2]
[374160731,1753233043252,-857.45,0.00017882,2]
[374160734,1753233043261,-1007.79,0.00017882,2]
[374160736,1753233043270,-1306.39,0.00017882,2]
[374160738,1753233043279,-1097.55,0.00017882,2]
[374160740,1753233043288,-460.0,0.00017882,2]
[374160742,1753233043298,-460.0,0.00017882,2]
[374160744,1753233043307,-460.0,0.00017882,2]
[374160746,1753233043316,-460.0,0.00017883,2]
[374160748,1753233043326,-460.0,0.00017883,2]
[374160750,1753233043335,-156.19163889,0.00017883,2]
[374160752,1753233043344,-460.0,0.00017883,2]
[374160754,1753233043354,-580.7,0.00017883,2]
[374160756,1753233043364,-460.0,0.00017883,2]
[374160758,1753233043373,-2089.16,0.00017884,2]
[374160760,1753233043383,-755.24,0.00017884,2]
[374160762,1753233043392,-1008.07,0.00017884,2]
[374160763,1753233043401,-774.97,0.00017884,2]
[374160764,1753233043410,-1434.22,0.00017884,2]
[374160765,1753233043418,-460.0,0.00017884,2]
[374160766,1753233043427,-1865.85,0.00017884,2]
[374160767,1753233043436,-500.0,0.00017885,2]
[374160768,1753233043445,-500.0,0.00017885,2]
[374160769,1753233043454,-460.0,0.00017886,2]
[374160770,1753233043463,-460.0,0.00017886,2]
[374160771,1753233043472,-460.0,0.00017886,2]
[374160772,1753233043484,-285.10075726,0.00017886,2]
[374160773,1753233043497,-460.0,0.00017886,2]
[374160774,1753233043510,-460.0,0.00017886,2]
[374160775,1753233043523,-460.0,0.00017886,2]
[374160776,1753233043537,-460.0,0.00017886,2]
[374160777,1753233043549,-460.0,0.00017886,2]
[374160778,1753233043561,-379.88597697,0.00017886,2]